bitfinex/quotes_SOLUSD_20211001
["timestamp","ask_amount","ask_price","bid_price","bid_amount"]
[1633065669425,15.23525043,140.87,140.75,76.1388]
[1633065669626,3.02,140.86,140.75,76.1388]
[1633065670828,8.65542961,140.86,140.75,76.1388]
[1633065671227,3.02,140.86,140.75,76.1388]
[1633065673030,3.02,140.86,140.74,4.09658822]
[1633065673228,29.80093991,140.86,140.74,4.09658822]
[1633065673628,38.50623027,140.86,140.75,25.22191148]
[1633065673828,38.50623027,140.86,140.76,8.22468385]
[1633065674030,22.002,140.86,140.76,8.22468385]
[1633065674232,3.02,140.86,140.76,8.22468385]
[1633065674431,3.02,140.86,140.76,12.32178779]
[1633065674636,3.02,140.86,140.78,4.09646409]
[1633065674831,3.02,140.86,140.8,4.09727935]
[1633065675031,3.02,140.9,140.82,4.09720267]
[1633065675432,3.02,140.9,140.83,28.80154826]
[1633065676232,3.02,140.9,140.84,12.31894226]
[1633065676832,3.02,140.92,140.85,4.09807767]
[1633065677033,3.02,140.92,140.86,26.18000543]
[1633065677236,3.02,140.94,140.86,44.75300543]
[1633065677433,3.02,140.94,140.87,8.21974096]
[1633065677635,3.02,140.96,140.87,17.95254299]
[1633065677833,3.02,140.96,140.89,4.09868075]
[1633065678233,3.02,140.96,140.9,24.92635995]
[1633065678435,3.02,140.96,140.88,4.0987212]
[1633065678639,3.02,140.98,140.88,4.0987212]
[1633065678835,3.02,140.98,140.93,4.09925627]
[1633065679035,3.02,140.98,140.94,4.09912191]
[1633065679636,3.02,140.98,140.95,27.17541226]
[1633065680036,3.02,141.0,140.96,8.21688828]
[1633065680237,3.02,141.02,140.96,12.31727097]
[1633065680437,3.02,141.02,140.97,4.10010842]
[1633065681039,3.02,141.02,140.98,29.4776098]
[1633065681636,3.02,141.02,140.97,4.10010842]
[1633065681836,3.02,141.02,140.99,8.21597672]
[1633065682035,3.02,141.02,140.97,4.10082263]
[1633065682838,3.02,141.02,140.97,12.31705795]
[1633065683038,3.02,141.02,140.98,4.10124047]
[1633065683438,3.02,141.02,140.99,4.10084183]
[1633065683638,3.02,141.04,140.99,4.10084183]
[1633065684041,3.02,141.04,140.98,4.10071477]
[1633065684240,3.02,141.04,140.99,27.86989633]
[1633065684442,3.02,141.04,141.0,12.28748855]
[1633065684640,3.02,141.04,141.01,4.06509333]
[1633065685241,3.02,141.04,141.02,21.40134115]
[1633065685641,60.0,141.09,141.03,8.21376055]
[1633065685642,3.02,141.06,141.03,8.21376055]
[1633065685843,63.02,141.09,141.02,36.28434115]
[1633065686043,33.02,141.09,141.03,12.30208203]
[1633065686242,3.02,141.09,141.04,4.07241906]
[1633065686643,3.02,141.09,141.05,27.08072193]
[1633065689244,3.02,141.09,141.01,4.07604085]
[1633065689443,5.63542961,141.08,141.0,4.07717353]
[1633065689648,3.02,141.07,140.96,8.2149674]
[1633065689844,3.02,141.07,140.95,8.21519609]
[1633065690143,26.85390457,141.06,140.95,21.93774154]
[1633065690348,3.02,141.05,140.95,21.93774154]
[1633065690545,8.65542961,141.05,140.95,21.93774154]
[1633065690946,8.65542961,141.05,140.94,4.09749023]
[1633065691148,5.63542961,141.04,140.93,4.09778365]
[1633065691347,3.02,141.03,140.93,4.09778365]
[1633065691748,23.488,141.03,140.93,4.09778365]
[1633065691949,23.488,141.03,140.94,26.41075782]
[1633065692549,23.488,141.03,140.95,8.21537568]
[1633065692951,45.69620499,141.03,140.95,8.21537568]
[1633065693149,45.69620499,141.03,140.94,26.41075782]
[1633065694155,45.69620499,141.03,140.92,4.09782848]
[1633065694355,45.69620499,141.03,140.92,12.31380656]
[1633065694750,45.69620499,141.03,140.92,8.21597808]
[1633065695151,45.69620499,141.03,140.93,29.78529433]
[1633065695960,45.69620499,141.03,140.91,7.11809554]
[1633065696156,45.69620499,141.03,140.91,3.02]
[1633065696757,51.3316346,141.03,140.91,3.02]
[1633065698157,111.3316346,141.03,140.91,3.02]
[1633065700662,118.51536925,141.03,140.89,4.10064274]
[1633065700865,118.51536925,141.03,140.88,12.31833493]
[1633065701484,118.51536925,141.03,140.89,22.56371806]
[1633065701683,38.04736925,141.03,140.89,26.66411198]
[1633065701886,38.04736925,141.03,140.9,12.31773437]
[1633065702284,38.04736925,141.03,140.9,8.21663338]
[1633065702484,65.60081248,141.03,140.9,8.21663338]
[1633065702886,95.60580972,141.03,140.9,8.21663338]
[1633065703284,17.7475,141.02,140.9,8.21663338]
[1633065703484,17.7475,141.02,140.88,12.32133581]
[1633065703485,3.02,141.01,140.88,12.32133581]
[1633065703886,15.83916426,141.01,140.88,12.32133581]
[1633065704087,5.63542961,141.0,140.88,4.10314787]
[1633065704290,3.02,140.99,140.88,4.10314787]
[1633065704685,8.65542961,140.99,140.88,4.10314787]
[1633065705489,8.65542961,140.99,140.89,4.10381936]
[1633065706089,8.65542961,140.99,140.9,4.10360796]
[1633065706689,8.65542961,140.99,140.89,12.32186024]
[1633065707689,8.65542961,140.99,140.9,4.10412656]
[1633065707892,3.02,140.99,140.91,23.52199305]
[1633065708489,23.38732961,140.98,140.85,3.04088]
[1633065708689,3.02,140.97,140.85,0.02088]
[1633065708889,73.39760473,140.97,140.81,81.14556487]
[1633065709094,63.21475008,140.96,140.82,8.22279054]
[1633065709290,3.04088,140.95,140.81,72.9016]
[1633065709490,84.35950185,140.94,140.81,72.9016]
[1633065709691,3.02,140.93,140.78,30.0]
[1633065709888,75.41,140.92,140.78,30.0]
[1633065710089,3.02,140.91,140.78,30.0]
[1633065710288,43.39260749,140.91,140.78,30.0]
[1633065710488,9.5112957,140.9,140.78,30.0]
[1633065710690,3.02,140.89,140.73,3.04088]
[1633065710896,17.51354511,140.88,140.76,23.87220979]
[1633065711092,17.51354511,140.88,140.77,8.22407079]
[1633065711093,3.02,140.87,140.77,8.22407079]
[1633065714591,3.02,140.87,140.76,23.87220979]
[1633065714795,3.02,140.87,140.77,8.22352095]
[1633065715394,3.02,140.87,140.76,23.87220979]
[1633065716196,8.65542961,140.87,140.75,3.02]
[1633065716394,56.42662685,140.87,140.73,3.04088]
[1633065716596,93.49136578,140.87,140.74,8.22460001]
[1633065716795,4.62869562,140.86,140.72,8.22479726]
[1633065716994,3.02,140.85,140.72,8.22479726]
[1633065717195,8.92862185,140.84,140.72,31.58949544]
[1633065717397,3.02,140.83,140.73,8.22491782]
[1633065718195,3.02,140.83,140.72,8.22539309]
[1633065718395,24.72942961,140.83,140.72,8.22539309]
[1633065718997,24.72942961,140.83,140.73,27.87301653]
[1633065720398,8.65542961,140.83,140.73,27.87301653]
[1633065720999,3.02,140.83,140.73,27.87301653]
[1633065722405,45.72016854,140.83,140.7,0.02088]
[1633065722606,7.17292334,140.82,140.7,8.24769644]
[1633065722805,3.02,140.81,140.7,8.22681644]
[1633065723005,8.65542961,140.81,140.68,8.2270127]
[1633065723204,15.62249759,140.81,140.68,8.2270127]
[1633065723407,15.62249759,140.81,140.69,22.26215903]
[1633065723605,9.98706798,140.81,140.69,25.28215903]
[1633065723805,3.02,140.81,140.7,8.22626909]
[1633065724605,3.02,140.81,140.71,3.02]
[1633065724807,3.02,140.81,140.72,35.87936591]
[1633065725007,3.02,140.81,140.72,27.65352834]
[1633065726006,3.02,140.81,140.73,8.22523383]
[1633065726810,3.02,140.84,140.73,11.24523383]
[1633065727210,3.02,140.84,140.74,8.22440406]
[1633065727816,3.02,140.84,140.75,28.06956781]
[1633065728816,3.02,140.84,140.73,3.02]
[1633065729015,33.02499724,140.84,140.71,3.02]
[1633065729215,73.18093806,140.84,140.71,3.02]
[1633065729416,73.18093806,140.84,140.72,8.22551578]
[1633065729616,82.89808912,140.84,140.72,8.22551578]
[1633065729815,82.89808912,140.84,140.72,31.63751718]
[1633065730021,82.89808912,140.84,140.73,8.22552115]
[1633065731919,77.26265951,140.84,140.73,8.22552115]
[1633065732318,82.89808912,140.84,140.73,8.22552115]
[1633065732519,82.89808912,140.84,140.72,23.4120014]
[1633065733420,17.7704,140.83,140.72,23.4120014]
[1633065733619,3.02,140.82,140.69,3.02]
[1633065733820,3.02,140.82,140.7,8.2282146]
[1633065733821,38.66042685,140.82,140.7,8.2282146]
[1633065734020,55.34464589,140.82,140.7,8.2282146]
[1633065734420,55.34464589,140.82,140.69,3.02]
[1633065734621,55.34464589,140.82,140.7,33.68057428]
[1633065734820,55.34464589,140.82,140.7,25.45207756]
[1633065736021,38.66042685,140.82,140.7,25.45207756]
[1633065736824,38.66042685,140.82,140.71,8.22889716]
[1633065738228,35.64042685,140.81,140.71,8.22889716]
[1633065738425,3.02,140.8,140.71,8.22889716]
[1633065738629,8.65542961,140.8,140.71,8.22889716]
[1633065739427,8.65542961,140.8,140.67,3.02]
[1633065739428,8.65542961,140.8,140.68,8.22941514]
[1633065740028,8.65542961,140.8,140.69,22.48076396]
[1633065740231,8.65542961,140.8,140.7,8.2291631]
[1633065741130,38.66042685,140.8,140.7,8.2291631]
[1633065743030,5.63542961,140.79,140.7,8.2291631]
[1633065743230,3.02,140.78,140.7,8.2291631]
[1633065744033,17.7704,140.83,140.7,8.2291631]
[1633065744034,60.0,140.85,140.79,5.63542961]
[1633065744238,3.02,140.92,140.8,3.02]
[1633065744434,3.02,140.93,140.8,11.24486933]
[1633065744632,3.02,140.93,140.81,5.63542961]
[1633065744832,29.90379175,140.95,140.82,36.52096265]
[1633065745033,29.90379175,140.95,140.83,8.22206023]
[1633065745234,3.02,140.95,140.84,3.02]
[1633065745431,3.02,140.97,140.85,8.22157144]
[1633065745832,3.02,140.97,140.83,3.02]
[1633065746032,3.02,140.97,140.84,8.22277502]
[1633065746233,28.54481011,140.96,140.84,8.22277502]
[1633065746431,28.54481011,140.96,140.85,28.9474701]
[1633065746432,3.02,140.95,140.85,28.9474701]
[1633065746834,3.02,140.95,140.83,3.02]
[1633065747835,3.02,140.95,140.84,24.74193903]
[1633065753741,3.02,140.95,140.85,3.02]
[1633065755542,3.02,140.95,140.85,23.385]
[1633065755942,73.1956,140.99,140.85,23.385]
[1633065755943,3.02,140.98,140.85,23.385]
[1633065756539,3.02,140.98,140.85,23.40588]
[1633065757140,3.02,140.98,140.85,29.04130961]
[1633065757340,3.02,141.0,140.86,8.21881447]
[1633065757541,3.02,141.0,140.87,3.02]
[1633065757742,3.02,141.0,140.87,78.1177]
[1633065757940,3.02,141.0,140.88,26.81572961]
[1633065758140,3.02,141.0,140.89,3.02]
[1633065759142,3.02,141.02,140.89,3.02]
[1633065770454,0.02088,141.06,140.89,27.60042961]
[1633065770655,0.02088,141.07,140.9,43.94745338]
[1633065770852,3.02,141.06,140.91,11.23666067]
[1633065771050,3.04088,141.06,140.92,8.21651212]
[1633065771249,3.02,141.06,140.94,27.72930503]
[1633065771450,3.02,141.06,140.95,3.02]
[1633065771651,3.02,141.06,140.95,23.638]
[1633065772050,79.9508,141.09,140.95,23.638]
[1633065774653,79.9508,141.09,140.95,3.02]
[1633065775256,7.24076738,141.08,140.95,3.02]
[1633065776759,79.9508,141.09,140.95,3.02]
[1633065776966,79.9508,141.09,140.95,8.65542961]
[1633065776967,76.9308,141.09,140.95,8.65542961]
[1633065777161,76.9308,141.09,140.96,8.21424679]
[1633065777360,76.9308,141.09,140.97,3.02]
[1633065777559,0.02088,141.12,140.97,8.65542961]
[1633065777758,0.02088,141.12,140.98,5.63542961]
[1633065777959,25.77007727,141.12,140.99,32.23430033]
[1633065778359,25.77007727,141.12,140.99,37.86972994]
[1633065779360,25.77007727,141.12,140.99,32.23430033]
[1633065780363,3.02,141.11,140.99,3.02]
[1633065780562,52.76289588,141.11,140.97,3.02]
[1633065780762,21.39799488,141.1,140.97,3.02]
[1633065780963,3.02,141.09,140.95,3.02]
[1633065781163,138.40124426,141.09,140.95,3.02]
[1633065781362,138.40124426,141.09,140.93,73.6066]
[1633065781363,71.16846961,141.08,140.94,26.20192091]
[1633065781565,3.02,141.07,140.94,26.20192091]
[1633065781762,8.65542961,141.07,140.94,26.20192091]
[1633065781962,3.02,141.07,140.94,26.20192091]
[1633065782763,6.66503121,141.07,140.94,26.20192091]
[1633065782976,12.30046082,141.07,140.94,26.20192091]
[1633065783170,27.96546082,141.07,140.93,3.02]
[1633065783564,27.96546082,141.07,140.93,5.02215886]
[1633065784164,22.33003121,141.07,140.94,31.69974119]
[1633065784363,22.33003121,141.07,140.95,1.99305456]
[1633065786467,6.66503121,141.07,140.95,5.01305456]
[1633065788468,34.32105303,141.07,140.95,5.01305456]
[1633065788669,34.32105303,141.07,140.95,1.99305456]
[1633065788866,63.99339547,141.07,140.95,1.99305456]
[1633065789067,63.99339547,141.07,140.94,1.97976688]
[1633065789275,17.7435,141.05,140.93,1.97944272]
[1633065789468,3.02,141.04,140.93,1.97944272]
[1633065789668,25.02206448,141.03,140.93,1.97944272]
[1633065789873,3.02,141.02,140.93,1.97944272]
[1633065792276,3.02,141.02,140.92,1.98540458]
[1633065792477,3.02,141.02,140.91,5.00155688]
[1633065792674,8.65542961,141.02,140.91,3.02]
[1633065792876,8.65542961,141.02,140.9,1.98713103]
[1633065793076,8.65542961,141.02,140.89,1.99447606]
[1633065793276,2.55088657,141.01,140.88,2.02149953]
[1633065793476,4.44010248,140.99,140.88,2.02149953]
[1633065793677,3.02,140.98,140.88,2.02149953]
[1633065793878,26.208,140.98,140.89,27.76657531]
[1633065794076,26.208,140.98,140.89,29.76241423]
[1633065794276,26.208,140.98,140.9,1.99566621]
[1633065795293,26.208,140.98,140.89,2.03276179]
[1633065795693,26.208,140.98,140.88,2.04531863]
[1633065796094,26.208,140.98,140.87,5.07208311]
[1633065797298,26.208,140.98,140.88,2.05268508]
[1633065797508,26.208,140.98,140.87,5.07266367]
[1633065797909,31.84342961,140.98,140.87,2.05266367]
[1633065798108,31.84342961,140.98,140.86,2.05271727]
[1633065798310,38.03934739,140.98,140.86,2.05271727]
[1633065798509,11.92361972,140.97,140.86,2.05271727]
[1633065798709,3.02,140.96,140.85,2.05253086]
[1633065798908,25.02206448,140.95,140.85,2.05253086]
[1633065799111,3.02,140.94,140.85,2.05253086]
[1633065800212,3.02,140.94,140.86,24.802463]
[1633065802411,25.02206448,140.95,140.86,24.802463]
[1633065803612,3.02,140.96,140.86,24.802463]
[1633065804011,11.92361972,140.97,140.87,3.02]
[1633065804210,9.21591778,140.98,140.88,2.05154881]
[1633065804811,9.21591778,140.98,140.89,30.16615465]
[1633065805210,9.21591778,140.98,140.89,32.21768227]
[1633065805413,9.21591778,140.98,140.89,30.16615465]
[1633065805710,9.21591778,140.98,140.89,32.21754772]
[1633065807614,9.21591778,140.98,140.9,2.05180557]
[1633065808015,30.48689786,140.98,140.9,2.05180557]
[1633065808617,9.21591778,140.98,140.9,2.05180557]
[1633065809014,9.21591778,140.98,140.89,2.0523136]
[1633065809218,5.63542961,140.97,140.88,2.05255027]
[1633065809618,8.65542961,140.97,140.87,2.05316379]
[1633065809816,11.92361972,140.96,140.87,2.05316379]
[1633065810016,23.13269392,140.95,140.86,2.05323035]
[1633065810219,46.72812353,140.95,140.86,2.05323035]
[1633065810619,46.72812353,140.95,140.87,2.05320566]
[1633065811018,17.96,140.95,140.87,2.05320566]
[1633065811215,17.96,140.95,140.88,2.05297242]
[1633065812016,46.52478724,140.95,140.88,2.05297242]
[1633065812417,46.52478724,140.95,140.87,2.05307896]
[1633065813616,17.96,140.95,140.87,2.05307896]
[1633065813816,17.96,140.95,140.88,2.0530862]
[1633065814017,17.96,140.95,140.89,2.05292109]
[1633065814417,19.166,140.98,140.91,2.05263242]
[1633065814617,3.02,140.99,140.91,25.35753681]
[1633065814817,3.02,140.99,140.92,2.05268705]
[1633065816617,3.02,141.01,140.93,2.05275464]
[1633065817418,3.02,141.01,140.94,26.36827536]
[1633065817820,3.02,141.01,140.93,2.05275464]
[1633065818021,20.612,141.01,140.93,2.05275464]
[1633065818622,20.612,141.01,140.94,2.05290023]
[1633065818821,20.612,141.01,140.94,24.54306306]
[1633065825227,20.612,141.01,140.95,2.04485293]
[1633065825826,20.612,141.01,140.94,24.54274169]
[1633065828529,20.612,141.01,140.94,22.49016283]
[1633065831931,26.0225861,141.01,140.94,24.47876106]
[1633065832531,20.612,141.01,140.94,24.47876106]
[1633065833131,20.612,141.01,140.94,1.98859823]
[1633065834131,20.612,141.01,140.94,31.06821731]
[1633065835734,20.612,141.01,140.94,1.98859823]
[1633065835935,26.24742961,141.01,140.93,1.99219899]
[1633065836134,26.24742961,141.01,140.91,2.00334481]
[1633065836335,17.11508447,141.0,140.91,2.00334481]
[1633065836534,3.02,140.99,140.9,1.99840819]
[1633065836734,6.08815997,140.98,140.9,1.99840819]
[1633065836949,3.02,140.97,140.89,2.00810206]
[1633065837335,8.65542961,140.97,140.88,2.01150251]
[1633065837534,5.63542961,140.96,140.88,2.01150251]
[1633065837736,3.02,140.95,140.87,2.01389333]
[1633065837936,18.079,140.95,140.87,2.01389333]
[1633065838136,29.0094366,140.94,140.86,2.01156494]
[1633065838335,3.02,140.93,140.86,2.01156494]
[1633065838537,8.65542961,140.93,140.86,2.01156494]
[1633065838736,8.65542961,140.93,140.85,2.02494113]
[1633065838936,8.65542961,140.93,140.86,2.01421785]
[1633065839137,8.65542961,140.93,140.85,2.01872955]
[1633065839951,8.65542961,140.93,140.84,2.01628997]
[1633065840138,3.02,140.93,140.85,2.01428624]
[1633065841138,8.65542961,140.93,140.85,2.01428624]
[1633065842140,3.02,140.93,140.85,2.01428624]
[1633065842338,3.02,140.93,140.86,1.99976329]
[1633065842538,3.02,140.93,140.87,1.99504151]
[1633065842739,8.65542961,140.93,140.85,1.99926582]
[1633065843140,24.4877321,140.92,140.85,1.99926582]
[1633065843341,24.4877321,140.92,140.82,7.01853164]
[1633065843342,3.02,140.91,140.84,2.00197398]
[1633065843740,5.63542961,140.9,140.85,2.01122194]
[1633065843941,3.02,140.89,140.83,2.02364983]
[1633065844143,23.19,140.89,140.83,2.02364983]
[1633065844340,28.82542961,140.89,140.83,2.02364983]
[1633065844742,33.79986447,140.89,140.83,2.02364983]
[1633065844943,33.79986447,140.89,140.82,2.02990844]
[1633065845143,28.16443486,140.89,140.82,2.02990844]
[1633065845342,28.16443486,140.89,140.83,2.03031276]
[1633065845542,33.79986447,140.89,140.82,2.03106147]
[1633065846741,33.79986447,140.89,140.81,2.04603117]
[1633065846942,33.79986447,140.89,140.82,2.04981727]
[1633065847143,33.79986447,140.89,140.81,2.05343173]
[1633065847346,33.79986447,140.89,140.79,5.63542961]
[1633065847544,30.68213293,140.88,140.79,5.63542961]
[1633065847744,3.04088,140.87,140.79,5.63542961]
[1633065847943,0.02088,140.86,140.79,5.63542961]
[1633065848143,3.02,140.85,140.79,5.63542961]
[1633065848345,33.6847996,140.85,140.79,5.63542961]
[1633065848544,39.32022921,140.85,140.79,5.63542961]
[1633065848746,5.63542961,140.84,140.79,5.63542961]
[1633065848949,3.02,140.83,140.79,5.63542961]
[1633065849345,5.63542961,140.82,140.79,5.63542961]
[1633065849546,3.02,140.81,140.79,5.63542961]
[1633065849947,4.97443486,140.8,140.79,5.63542961]
[1633065851147,3.02,140.81,140.79,5.63542961]
[1633065853947,3.02,140.83,140.79,5.63542961]
[1633065854346,20.13508447,140.85,140.79,5.63542961]
[1633065854746,21.42560047,140.84,140.79,5.63542961]
[1633065854954,3.02,140.83,140.79,5.63542961]
[1633065855546,8.65542961,140.83,140.79,5.63542961]
[1633065857349,25.60342961,140.83,140.79,5.63542961]
[1633065857551,54.6071181,140.83,140.79,5.63542961]
[1633065857953,71.72220257,140.83,140.79,5.63542961]
[1633065858350,99.76853206,140.83,140.79,5.63542961]
[1633065863958,5.63542961,140.79,140.71,2.05284858]
[1633065864159,24.25342961,140.79,140.71,2.05284858]
[1633065864357,24.25342961,140.79,140.7,2.07379467]
[1633065864758,24.25342961,140.79,140.71,2.0533814]
[1633065864958,24.25342961,140.79,140.72,23.74268698]
[1633065865160,8.65542961,140.79,140.72,25.79597697]
[1633065865560,8.65542961,140.79,140.72,2.05328999]
[1633065865759,8.65542961,140.79,140.73,2.05390962]
[1633065866762,21.42560047,140.78,140.74,2.05441106]
[1633065866964,8.65542961,140.79,140.74,2.05441106]
[1633065867362,8.65542961,140.79,140.76,2.05413002]
[1633065867761,5.63542961,140.79,140.76,2.05413002]
[1633065867961,5.63542961,140.79,140.77,2.05439582]
[1633065868760,5.63542961,140.79,140.78,2.05434464]
[1633065869160,5.63542961,140.79,140.77,2.05443584]
[1633065869762,5.63542961,140.79,140.78,2.05469492]
[1633065873272,5.63542961,140.79,140.77,8.22641842]
[1633065874068,5.63542961,140.79,140.77,12.33619579]
[1633065874267,5.63542961,140.79,140.78,4.10964782]
[1633065874669,5.63542961,140.79,140.77,8.22641842]
[1633065876371,5.63542961,140.79,140.78,4.10971581]
[1633065876573,3.02,140.86,140.79,5.63542961]
[1633065876772,3.02,140.86,140.83,2.05488472]
[1633065878671,3.02,140.86,140.82,28.44524307]
[1633065879273,3.02,140.86,140.83,2.05452942]
[1633065880074,8.65542961,140.88,140.83,2.05452942]
[1633065880978,8.65542961,140.88,140.82,28.44495722]
[1633065881179,8.65542961,140.88,140.83,2.05425168]
[1633065881375,8.65542961,140.9,140.85,2.0539819]
[1633065881576,3.02,140.9,140.85,2.0539819]
[1633065881987,3.02,140.9,140.86,30.08570629]
[1633065882177,3.02,140.92,140.86,49.38870629]
[1633065882378,3.02,140.92,140.86,47.33517972]
[1633065882577,3.02,140.94,140.87,2.05328324]
[1633065882777,3.02,140.94,140.86,2.05340219]
[1633065882976,3.02,140.94,140.79,11.79614522]
[1633065882977,61.48196242,140.94,140.85,2.05331014]
[1633065883177,82.18412961,140.93,140.84,2.05340127]
[1633065883379,3.02,140.92,140.82,2.0536567]
[1633065883580,82.14339203,140.92,140.81,2.05387067]
[1633065883777,86.56889447,140.91,140.81,2.05387067]
[1633065883982,3.02,140.9,140.81,2.05387067]
[1633065884183,39.07106254,140.9,140.81,2.05387067]
[1633065884384,36.05106254,140.89,140.81,2.05387067]
[1633065884584,12.62066452,140.88,140.81,2.05387067]
[1633065884784,18.25609413,140.88,140.81,2.05387067]
[1633065884990,5.63542961,140.87,140.81,2.05387067]
[1633065885584,8.65542961,140.87,140.81,2.05387067]
[1633065885785,8.65542961,140.87,140.8,2.05383741]
[1633065886585,5.63542961,140.86,140.8,2.05383741]
[1633065888286,5.63542961,140.86,140.79,7.68945076]
[1633065888488,25.57442961,140.86,140.79,5.63542961]
[1633065888690,25.49150244,140.85,140.79,5.63542961]
[1633065888886,8.65542961,140.85,140.79,5.63542961]
[1633065889086,5.63542961,140.84,140.79,5.63542961]
[1633065889687,3.02,140.85,140.79,7.68958461]
[1633065889889,3.02,140.85,140.8,2.05412988]
[1633065889890,28.05667136,140.85,140.8,2.05412988]
[1633065890087,28.05667136,140.85,140.79,7.68960738]
[1633065890288,33.69210097,140.85,140.79,7.68960738]
[1633065890689,3.02,140.85,140.79,7.68960738]
[1633065891088,3.02,140.85,140.8,2.05416384]
[1633065891291,8.65542961,140.87,140.8,2.05416384]
[1633065891489,8.65542961,140.87,140.81,2.05404546]
[1633065891691,8.65542961,140.87,140.82,24.79065755]
[1633065891889,3.02,140.87,140.82,24.79065755]
[1633065892088,3.02,140.87,140.82,26.84455319]
[1633065892290,28.04632949,140.91,140.83,2.05379019]
[1633065892492,3.02,140.91,140.84,2.05367953]
[1633065892690,3.02,140.91,140.85,2.05355933]
[1633065893290,3.02,140.91,140.86,2.05334253]
[1633065893694,3.02,140.91,140.85,30.0835561]
[1633065893892,3.02,140.91,140.86,2.05328122]
[1633065894090,3.02,140.91,140.85,30.08354765]
[1633065894692,3.02,140.91,140.86,2.05326922]
[1633065896195,3.02,140.91,140.85,30.08357884]
[1633065896418,3.02,140.91,140.86,2.05328517]
[1633065898000,3.02,140.91,140.87,2.05321671]
[1633065898601,3.02,140.91,140.88,23.57709854]
[1633065900602,3.02,140.94,140.88,23.57709854]
[1633065901205,3.02,140.94,140.88,25.6300744]
[1633065901809,5.63542961,140.99,140.88,25.6300744]
[1633065902008,15.17968704,141.0,140.9,2.05272225]
[1633065902009,3.02,140.96,140.9,2.05272225]
[1633065902207,3.02,140.96,140.91,2.05256495]
[1633065902607,3.02,140.96,140.89,8.21853325]
[1633065902608,3.02,140.99,140.92,30.45447694]
[1633065902809,3.02,140.99,140.92,28.40195097]
[1633065903408,5.63542961,140.98,140.92,28.40195097]
[1633065904408,5.63542961,140.98,140.9,2.05236342]
[1633065904608,3.02,140.97,140.9,2.05236342]
[1633065904807,3.02,140.97,140.89,2.05229698]
[1633065905429,3.02,140.97,140.91,30.31477757]
[1633065908310,3.02,140.97,140.91,52.06477757]
[1633065908708,3.02,140.99,140.91,52.06477757]
[1633065908908,3.02,140.99,140.91,54.11612506]
[1633065909312,3.02,140.99,140.92,2.05028132]
[1633065910710,3.02,141.01,140.92,2.05028132]
[1633065911710,3.02,141.01,140.91,32.35092594]
[1633065913411,3.02,141.01,140.91,29.81477757]
[1633065914811,3.02,141.01,140.91,31.83345483]
[1633065915212,3.02,141.01,140.91,110.44695483]
[1633065915413,3.02,141.01,140.91,108.42827757]
[1633065917014,3.02,141.01,140.91,110.42554419]
[1633065918419,3.02,141.01,140.91,108.42827757]
[1633065919217,3.02,141.01,140.91,29.81477757]
[1633065919419,3.02,141.01,140.91,31.80460222]
[1633065919618,3.02,141.01,140.92,1.98771326]
[1633065920017,3.02,141.04,140.92,5.00771326]
[1633065920217,3.02,141.04,140.93,1.98048049]
[1633065920618,3.02,141.04,140.94,23.52559723]
[1633065920818,3.02,141.04,140.94,25.50315682]
[1633065922619,3.02,141.04,140.95,1.97646512]
[1633065924118,3.02,141.04,140.96,1.99592943]
[1633065924320,3.02,141.04,140.97,29.88847689]
[1633065927626,3.02,141.04,140.97,31.89226102]
[1633065929025,3.02,141.04,140.98,2.0006543]
[1633065929446,3.02,141.04,140.97,31.86832319]
[1633065929825,3.02,141.04,140.98,1.96873502]
[1633065932829,3.02,141.06,140.98,1.96873502]
[1633065933829,3.02,141.06,140.99,1.9780506]
[1633065934027,3.02,141.06,141.0,23.5177548]
[1633065936936,3.02,141.06,141.0,41.0967548]
[1633065937132,3.02,141.08,141.01,1.98863376]
[1633065937331,3.02,141.08,141.02,1.98133174]
[1633065937532,3.02,141.1,141.03,1.97466742]
[1633065937732,3.02,141.1,141.04,25.93873264]
[1633065938133,306.36549977,141.13,141.04,25.93873264]
[1633065938332,306.36549977,141.13,141.06,1.95020452]
[1633065938533,306.36549977,141.13,141.06,25.71420452]
[1633065938732,4.21709813,141.16,141.06,23.764]
[1633065938933,4.21709813,141.16,141.06,28.73395164]
[1633065939134,3.02,141.17,141.07,28.48933537]